[Event "Asian Amateur Rapid Women 2024"]
[Site "Al Ain"]
[Date "2024.12.15"]
[Round "2.5"]
[White "Marksim Karki Abirami, Sriiyukthaa"]
[Black "Hotami, Mutriba"]
[Result "1-0"]
[ECO "E90"]
[WhiteElo "1466"]
[BlackElo "1882"]
[Annotator "NA RC"]
[PlyCount "93"]
[EventDate "2024.12.15"]
[EventType "swiss"]
[EventCountry "UAE"]
[SourceTitle "playchess.com"]
[Source "ChessBase"]
[SourceQuality "1"]
[TimeControl "900+10"]

1. d4 {[%emt 0:00:10]} Nf6 {[%emt 0:00:02]} 2. c4 {[%emt 0:00:05]} g6 {[%emt 0:00:13]} 3. Nc3 {[%emt 0:00:05]} Bg7 {[%emt 0:00:03]} 4. e4 {[%emt 0:00:08]} d6 {[%emt 0:00:01]} 5. Nf3 {[%emt 0:00:05]} O-O {[%emt 0:00:09]} 6. Bd3 {[%emt 0:00:08]} Nc6 {[%emt 0:00:25]} 7. Be3 {[%emt 0:00:22]} e5 {[%emt 0:00:16]} 8. d5 {[%emt 0:00:18]} Ne7 {[%emt 0:00:04]} 9. O-O {[%emt 0:00:06]} Ng4 {[%emt 0:00:28]} 10. Nd2 {[%emt 0:00:51]} f5 {[%emt 0:00:57]} 11. exf5 {[%emt 0:01:12]} gxf5 {[%emt 0:00:03]} 12. h3 {[%emt 0:00:16]} Nxe3 {[%emt 0:00:46]} 13. fxe3 {[%emt 0:00:06]} e4 {[%emt 0:00:13]} 14. Bc2 {[%emt 0:00:21]} Ng6 {[%emt 0:00:44]} 15. Rb1 {[%emt 0:01:02]} Qg5 {[%emt 0:02:26]} 16. Qe2 {[%emt 0:01:23]} Be5 {[%emt 0:00:45]} 17. Qf2 {[%emt 0:00:43]} Bg3 {[%emt 0:00:47]} 18. Qe2 {[%emt 0:00:16]} Nh4 {[%emt 0:03:14]} 19. Ndxe4 {[%emt 0:06:04]} fxe4 {[%emt 0:00:14]} 20. Rxf8+ {[%emt 0:00:02]} Kxf8 {[%emt 0:00:02]} 21. Nxe4 {[%emt 0:00:09]} Qe5 {[%emt 0:03:36]} 22. Rf1+ {[%emt 0:00:45]} Kg7 {[%emt 0:00:00]} 23. Nxg3 {[%emt 0:00:30]} Qxg3 {[%emt 0:00:05]} 24. Qf2 {[%emt 0:00:04]} Qxf2+ {[%emt 0:00:18]} 25. Rxf2 {[%emt 0:00:01]} Bd7 {[%emt 0:00:24]} 26. Bxh7 {[%emt 0:00:03]} Re8 {[%emt 0:00:46]} 27. e4 {[%emt 0:00:15]} Re7 {[%emt 0:00:48]} 28. Bf5 {[%emt 0:00:06]} Nxf5 {[%emt 0:00:24]} 29. exf5 {[%emt 0:00:02]} Re4 {[%emt 0:00:05]} 30. b3 {[%emt 0:00:04]} Kf6 {[%emt 0:00:02]} 31. g4 {[%emt 0:00:02]} Kg5 {[%emt 0:00:01]} 32. Kg2 {[%emt 0:00:21]} b5 {[%emt 0:00:25]} 33. f6 {[%emt 0:00:16]} Re8 {[%emt 0:00:01]} 34. Kg3 {[%emt 0:00:04]} bxc4 {[%emt 0:00:24]} 35. h4+ {[%emt 0:00:09]} Kg6 {[%emt 0:00:02]} 36. bxc4 {[%emt 0:00:02]} Re3+ {[%emt 0:00:34]} 37. Kg2 {[%emt 0:00:08]} Kf7 {[%emt 0:00:18]} 38. g5 {[%emt 0:00:05]} Re4 {[%emt 0:00:03]} 39. g6+ {[%emt 0:04:51]} Kf8 {[%emt 0:00:03]} 40. h5 {[%emt 0:00:00]} Rh4 {[%emt 0:00:17]} 41. f7 {[%emt 0:00:00]} Rg4+ {[%emt 0:00:31]} 42. Kf1 {[%emt 0:00:00]} Rg5 {[%emt 0:00:23]} 43. Rf6 {[%emt 0:00:00]} Rf5+ {[%emt 0:00:19]} 44. Rxf5 {[%emt 0:00:00]} Bxf5 {[%emt 0:00:00]} 45. Kf2 {[%emt 0:00:00]} Bg4 {[%emt 0:00:16]} 46. h6 {[%emt 0:00:00]} Bf5 {[%emt 0:00:09]} 47. h7 {[%emt 0:00:00]} 1-0

[Event "Asian Amateur Rapid Women 2024"]
[Site "Al Ain"]
[Date "2024.12.15"]
[Round "2.6"]
[White "Ahlam Rashed"]
[Black "Al Khoori, Noora Mahmood Abdull"]
[Result "1-0"]
[ECO "D41"]
[WhiteElo "1987"]
[BlackElo "1513"]
[Annotator "RC"]
[PlyCount "43"]
[EventDate "2024.12.15"]
[EventType "swiss"]
[EventCountry "UAE"]
[SourceTitle "playchess.com"]
[Source "ChessBase"]
[SourceQuality "1"]
[TimeControl "900+10"]

1. Nf3 {[%emt 0:00:04]} Nf6 {[%emt 0:00:02]} 2. c4 {[%emt 0:00:01]} c5 {[%emt 0:00:01]} 3. Nc3 {[%emt 0:00:02]} Nc6 {[%emt 0:00:02]} 4. d4 {[%emt 0:00:02]} d5 {[%emt 0:01:14]} 5. cxd5 {[%emt 0:02:58]} Nxd5 {[%emt 0:01:29]} 6. e4 {[%emt 0:01:24]} Nxc3 {[%emt 0:01:47]} 7. bxc3 {[%emt 0:00:01]} e6 {[%emt 0:00:25]} 8. d5 {[%emt 0:02:10]} exd5 {[%emt 0:00:42]} 9. exd5 {[%emt 0:00:02]} Qe7+ {[%emt 0:02:04]} 10. Be3 {[%emt 0:00:07]} Ne5 {[%emt 0:01:05]} 11. Bb5+ {[%emt 0:00:26]} Bd7 {[%emt 0:02:09]} 12. Bxd7+ {[%emt 0:00:09]} Nxd7 {[%emt 0:00:29]} 13. O-O {[%emt 0:00:29]} O-O-O {[%emt 0:00:45]} 14. Qa4 {[%emt 0:00:33]} Kb8 {[%emt 0:01:14]} 15. Rab1 {[%emt 0:02:20]} Rc8 {[%emt 0:03:07]} 16. Rfe1 {[%emt 0:01:14]} Ka8 {[%emt 0:00:21]} 17. Bf4 {[%emt 0:00:31]} Qd8 {[%emt 0:00:24]} 18. Rb3 {[%emt 0:01:04]} Nb6 {[%emt 0:00:06]} 19. Qxa7+ {[%emt 0:00:19]} Kxa7 {[%emt 0:00:10]} 20. Ra3+ {[%emt 0:00:01]} Na4 {[%emt 0:00:11]} 21. Rxa4+ {[%emt 0:00:02]} Kb6 {[%emt 0:00:02]} 22. Rb1# {[%emt 0:00:01]} 1-0

[Event "Asian Amateur Rapid Women 2024"]
[Site "Al Ain"]
[Date "2024.12.15"]
[Round "2.8"]
[White "Prakash, Sadhana"]
[Black "Wijesuriya, G P Y"]
[Result "0-1"]
[ECO "D00"]
[WhiteElo "1408"]
[BlackElo "1867"]
[Annotator "NA RC"]
[PlyCount "112"]
[EventDate "2024.12.15"]
[EventType "swiss"]
[EventCountry "UAE"]
[SourceTitle "playchess.com"]
[Source "ChessBase"]
[SourceQuality "1"]
[TimeControl "900+10"]

1. d4 {[%emt 0:00:03]} d5 {[%emt 0:00:14]} 2. Bf4 {[%emt 0:00:03]} Nf6 {[%emt 0:00:02]} 3. e3 {[%emt 0:00:01]} c5 {[%emt 0:00:02]} 4. c3 {[%emt 0:00:08]} Nc6 {[%emt 0:00:03]} 5. Nd2 {[%emt 0:00:07]} Qb6 {[%emt 0:00:03]} 6. Qb3 {[%emt 0:00:03]} c4 {[%emt 0:00:02]} 7. Qc2 {[%emt 0:00:03]} g6 {[%emt 0:00:05]} 8. Ngf3 {[%emt 0:00:02]} Bf5 {[%emt 0:00:02]} 9. Qc1 {[%emt 0:00:02]} Bg7 {[%emt 0:00:03]} 10. Be2 {[%emt 0:00:02]} O-O {[%emt 0:00:08]} 11. O-O {[%emt 0:00:05]} Nh5 {[%emt 0:00:28]} 12. Bg3 {[%emt 0:00:05]} Nxg3 {[%emt 0:00:02]} 13. hxg3 {[%emt 0:00:14]} e5 {[%emt 0:00:02]} 14. dxe5 {[%emt 0:00:09]} Nxe5 {[%emt 0:00:03]} 15. Nd4 {[%emt 0:00:19]} Bd3 {[%emt 0:00:05]} 16. Bxd3 {[%emt 0:00:13]} Nxd3 {[%emt 0:00:03]} 17. Qc2 {[%emt 0:00:19]} Qxb2 {[%emt 0:01:40]} 18. Qxb2 {[%emt 0:00:42]} Nxb2 {[%emt 0:00:03]} 19. Rab1 {[%emt 0:01:13]} Na4 {[%emt 0:00:03]} 20. Rfc1 {[%emt 0:00:36]} b6 {[%emt 0:00:42]} 21. N2f3 {[%emt 0:00:03]} Rfd8 {[%emt 0:00:35]} 22. Rb4 {[%emt 0:00:22]} Nc5 {[%emt 0:00:03]} 23. Rbb1 {[%emt 0:00:22]} Ne4 {[%emt 0:01:57]} 24. Nc6 {[%emt 0:00:22]} Re8 {[%emt 0:00:22]} 25. Ncd4 {[%emt 0:00:03]} Rac8 {[%emt 0:00:32]} 26. Rb5 {[%emt 0:00:50]} Rc5 {[%emt 0:00:14]} 27. Rxc5 {[%emt 0:01:56]} bxc5 {[%emt 0:00:02]} 28. Nb5 {[%emt 0:00:06]} Rb8 {[%emt 0:00:25]} 29. Nc7 {[%emt 0:00:23]} Nxc3 {[%emt 0:00:06]} 30. Kf1 {[%emt 0:00:50]} Kf8 {[%emt 0:00:12]} 31. Nd2 {[%emt 0:00:28]} Rb6 {[%emt 0:00:26]} 32. a3 {[%emt 0:00:30]} Rc6 {[%emt 0:00:13]} 33. Nxd5 {[%emt 0:00:10]} Nxd5 {[%emt 0:00:02]} 34. Rxc4 {[%emt 0:00:09]} Nb6 {[%emt 0:00:02]} 35. Rc2 {[%emt 0:00:04]} c4 {[%emt 0:00:02]} 36. Ke2 {[%emt 0:00:13]} c3 {[%emt 0:00:11]} 37. Ne4 {[%emt 0:00:27]} f5 {[%emt 0:00:58]} 38. Ng5 {[%emt 0:00:02]} h6 {[%emt 0:00:02]} 39. Nf3 {[%emt 0:00:01]} Nc4 {[%emt 0:00:19]} 40. a4 {[%emt 0:00:22]} Na3 {[%emt 0:00:06]} 41. Rc1 {[%emt 0:00:06]} c2 {[%emt 0:00:27]} 42. Ne1 {[%emt 0:00:07]} Bb2 {[%emt 0:00:02]} 43. Rxc2 {[%emt 0:00:11]} Nxc2 {[%emt 0:00:03]} 44. Nxc2 {[%emt 0:00:01]} Rxc2+ {[%emt 0:00:02]} 45. Kf3 {[%emt 0:00:01]} Rc4 {[%emt 0:00:04]} 46. a5 {[%emt 0:00:03]} Ra4 {[%emt 0:00:02]} 47. a6 {[%emt 0:00:03]} Rxa6 {[%emt 0:00:01]} 48. g4 {[%emt 0:00:02]} fxg4+ {[%emt 0:00:04]} 49. Kxg4 {[%emt 0:00:01]} Rc6 {[%emt 0:00:03]} 50. f4 {[%emt 0:00:02]} a5 {[%emt 0:00:01]} 51. Kf3 {[%emt 0:00:01]} a4 {[%emt 0:00:01]} 52. e4 {[%emt 0:00:01]} a3 {[%emt 0:00:01]} 53. Kg4 {[%emt 0:00:01]} a2 {[%emt 0:00:01]} 54. g3 {[%emt 0:00:01]} a1=Q {[%emt 0:00:05]} 55. e5 {[%emt 0:00:02]} Bxe5 {[%emt 0:00:09]} 56. fxe5 {[%emt 0:00:02]} Rc4+ {[%emt 0:00:01]} 0-1

[Event "Asian Amateur Rapid Women 2024"]
[Site "Al Ain"]
[Date "2024.12.15"]
[Round "2.9"]
[White "Mariam Khalifa AlQubaisi"]
[Black "Daneshpour, Aram"]
[Result "1-0"]
[ECO "B28"]
[WhiteElo "1438"]
[BlackElo "1563"]
[Annotator "NA RC"]
[PlyCount "115"]
[EventDate "2024.12.15"]
[EventType "swiss"]
[EventCountry "UAE"]
[SourceTitle "playchess.com"]
[Source "ChessBase"]
[SourceQuality "1"]
[TimeControl "900+10"]

1. e4 {[%emt 0:00:01]} c5 {[%emt 0:00:04]} 2. Nf3 {[%emt 0:00:01]} a6 {[%emt 0:00:05]} 3. g3 {[%emt 0:00:03]} Nc6 {[%emt 0:00:13]} 4. Bg2 {[%emt 0:00:01]} e5 {[%emt 0:00:07]} 5. O-O {[%emt 0:00:04]} Nf6 {[%emt 0:00:18]} 6. Re1 {[%emt 0:00:01]} Be7 {[%emt 0:00:06]} 7. c3 {[%emt 0:00:04]} O-O {[%emt 0:00:28]} 8. d4 {[%emt 0:00:02]} cxd4 {[%emt 0:00:08]} 9. cxd4 {[%emt 0:00:02]} Bb4 {[%emt 0:01:57]} 10. Nc3 {[%emt 0:03:19]} d6 {[%emt 0:01:02]} 11. d5 {[%emt 0:00:54]} Bxc3 {[%emt 0:00:59]} 12. bxc3 {[%emt 0:00:06]} Na5 {[%emt 0:00:14]} 13. Rb1 {[%emt 0:01:45]} Nc4 {[%emt 0:00:38]} 14. Qa4 {[%emt 0:00:30]} b5 {[%emt 0:02:26]} 15. Qd1 {[%emt 0:04:47]} Bg4 {[%emt 0:00:16]} 16. h3 {[%emt 0:00:49]} Bh5 {[%emt 0:00:36]} 17. Qd3 {[%emt 0:00:36]} Nd7 {[%emt 0:01:21]} 18. Nd2 {[%emt 0:01:12]} Nc5 {[%emt 0:00:40]} 19. Qc2 {[%emt 0:00:24]} Nxd2 {[%emt 0:01:04]} 20. Bxd2 {[%emt 0:00:04]} Qd7 {[%emt 0:02:19]} 21. f4 {[%emt 0:00:43]} f6 {[%emt 0:02:20]} 22. c4 {[%emt 0:01:23]} bxc4 {[%emt 0:00:28]} 23. Qxc4 {[%emt 0:02:09]} Rfc8 {[%emt 0:00:22]} 24. Qf1 {[%emt 0:00:00]} Rab8 {[%emt 0:00:28]} 25. Rxb8 {[%emt 0:00:00]} Rxb8 {[%emt 0:00:41]} 26. Be3 {[%emt 0:00:02]} Rb6 {[%emt 0:00:00]} 27. Bxc5 {[%emt 0:00:18]} dxc5 {[%emt 0:00:00]} 28. Re3 {[%emt 0:00:07]} Qb7 {[%emt 0:00:12]} 29. Rb3 {[%emt 0:00:17]} Rxb3 {[%emt 0:00:04]} 30. axb3 {[%emt 0:00:01]} a5 {[%emt 0:00:16]} 31. Qc4 {[%emt 0:00:14]} Bf7 {[%emt 0:00:06]} 32. Qxc5 {[%emt 0:00:10]} Qa8 {[%emt 0:00:15]} 33. d6 {[%emt 0:00:07]} Bxb3 {[%emt 0:00:04]} 34. d7 {[%emt 0:00:09]} Be6 {[%emt 0:00:17]} 35. Qe7 {[%emt 0:00:09]} Bxd7 {[%emt 0:00:14]} 36. Qxd7 {[%emt 0:00:01]} a4 {[%emt 0:00:03]} 37. Qd5+ {[%emt 0:00:01]} Qxd5 {[%emt 0:00:29]} 38. exd5 {[%emt 0:00:02]} a3 {[%emt 0:00:00]} 39. d6 {[%emt 0:00:19]} Kf8 {[%emt 0:00:00]} 40. fxe5 {[%emt 0:00:03]} fxe5 {[%emt 0:00:00]} 41. Bd5 {[%emt 0:00:01]} Ke8 {[%emt 0:00:00]} 42. Kf2 {[%emt 0:00:04]} Kd7 {[%emt 0:00:00]} 43. Ke3 {[%emt 0:00:04]} Kxd6 {[%emt 0:00:00]} 44. Ke4 {[%emt 0:00:06]} g6 {[%emt 0:00:00]} 45. g4 {[%emt 0:00:09]} h6 {[%emt 0:00:09]} 46. h4 {[%emt 0:00:15]} g5 {[%emt 0:00:25]} 47. hxg5 {[%emt 0:00:02]} hxg5 {[%emt 0:00:03]} 48. Ba2 {[%emt 0:00:01]} Ke7 {[%emt 0:00:08]} 49. Kxe5 {[%emt 0:00:01]} Kf8 {[%emt 0:00:06]} 50. Kf5 {[%emt 0:00:03]} Kg7 {[%emt 0:00:10]} 51. Kxg5 {[%emt 0:00:06]} Kh7 {[%emt 0:00:05]} 52. Kf6 {[%emt 0:00:08]} Kh8 {[%emt 0:01:03]} 53. Bf7 {[%emt 0:01:32]} Kh7 {[%emt 0:00:12]} 54. g5 {[%emt 0:00:14]} Kh8 {[%emt 0:00:11]} 55. g6 {[%emt 0:00:15]} a2 {[%emt 0:00:04]} 56. g7+ {[%emt 0:00:03]} Kh7 {[%emt 0:00:04]} 57. g8=Q+ {[%emt 0:00:02]} Kh6 {[%emt 0:00:02]} 58. Qg6# {[%emt 0:00:01]} 1-0

[Event "Asian Amateur Rapid Women 2024"]
[Site "Al Ain"]
[Date "2024.12.15"]
[Round "2.11"]
[White "Charomova, Evguenia"]
[Black "Joshi, Sindira"]
[Result "0-1"]
[ECO "C55"]
[WhiteElo "1870"]
[BlackElo "1735"]
[Annotator "NA RC"]
[PlyCount "59"]
[EventDate "2024.12.15"]
[EventType "swiss"]
[EventCountry "UAE"]
[SourceTitle "playchess.com"]
[Source "ChessBase"]
[SourceQuality "1"]
[TimeControl "900+10"]

1. e4 {[%emt 0:00:02]} e5 {[%emt 0:00:02]} 2. Nf3 {[%emt 0:00:03]} Nf6 {[%emt 0:00:03]} 3. Nc3 {[%emt 0:00:13]} Bb4 {[%emt 0:00:02]} 4. Bc4 {[%emt 0:02:38]} Nc6 {[%emt 0:00:06]} 5. a3 {[%emt 0:00:14]} Bxc3 {[%emt 0:00:15]} 6. bxc3 {[%emt 0:03:17]} Nxe4 {[%emt 0:01:53]} 7. Qe2 {[%emt 0:00:16]} d5 {[%emt 0:00:20]} 8. Bb5 {[%emt 0:00:14]} O-O {[%emt 0:00:20]} 9. d3 {[%emt 0:00:32]} Nxc3 {[%emt 0:00:11]} 10. Qd2 {[%emt 0:03:09]} Nxb5 {[%emt 0:00:03]} 11. O-O {[%emt 0:00:06]} Nbd4 {[%emt 0:00:29]} 12. Nxd4 {[%emt 0:00:25]} Nxd4 {[%emt 0:00:08]} 13. Bb2 {[%emt 0:00:02]} Nc6 {[%emt 0:00:24]} 14. f4 {[%emt 0:00:43]} e4 {[%emt 0:00:51]} 15. f5 {[%emt 0:00:53]} f6 {[%emt 0:01:02]} 16. g4 {[%emt 0:00:08]} Ne5 {[%emt 0:00:17]} 17. dxe4 {[%emt 0:00:15]} dxe4 {[%emt 0:00:43]} 18. Qf4 {[%emt 0:00:22]} Nf3+ {[%emt 0:01:27]} 19. Kh1 {[%emt 0:01:40]} Ng5 {[%emt 0:00:29]} 20. h4 {[%emt 0:00:20]} Nf3 {[%emt 0:00:43]} 21. Qg3 {[%emt 0:01:26]} Qe7 {[%emt 0:00:16]} 22. a4 {[%emt 0:00:18]} Bd7 {[%emt 0:00:05]} 23. Ba3 {[%emt 0:00:03]} c5 {[%emt 0:00:11]} 24. a5 {[%emt 0:00:11]} Bc6 {[%emt 0:00:18]} 25. Kg2 {[%emt 0:00:35]} Rfd8 {[%emt 0:00:12]} 26. Rf2 {[%emt 0:01:03]} Rd7 {[%emt 0:00:30]} 27. Kh3 {[%emt 0:00:11]} Rad8 {[%emt 0:00:13]} 28. Raf1 {[%emt 0:00:16]} Rd2 {[%emt 0:00:22]} 29. Rxd2 {[%emt 0:00:13]} Rxd2 {[%emt 0:00:04]} 30. Rf2 {[%emt 0:00:22]} 0-1

[Event "Asian Amateur Rapid Women 2024"]
[Site "Al Ain"]
[Date "2024.12.15"]
[Round "2.12"]
[White "Rowdah Ghalib Alafeefi"]
[Black "Al Dhaffari, Salma"]
[Result "1-0"]
[ECO "B13"]
[WhiteElo "1450"]
[BlackElo "1619"]
[Annotator "NA RC"]
[PlyCount "63"]
[EventDate "2024.12.15"]
[EventType "swiss"]
[EventCountry "UAE"]
[SourceTitle "playchess.com"]
[Source "ChessBase"]
[SourceQuality "1"]
[TimeControl "900+10"]

1. d4 {[%emt 0:00:01]} d5 {[%emt 0:00:01]} 2. Bf4 {[%emt 0:00:08]} c5 {[%emt 0:00:04]} 3. c3 {[%emt 0:00:05]} Nc6 {[%emt 0:00:10]} 4. e3 {[%emt 0:00:01]} cxd4 {[%emt 0:00:12]} 5. exd4 {[%emt 0:00:03]} Nf6 {[%emt 0:00:15]} 6. Nf3 {[%emt 0:00:06]} e6 {[%emt 0:00:23]} 7. Bd3 {[%emt 0:00:08]} Bd6 {[%emt 0:00:06]} 8. Bg3 {[%emt 0:00:10]} O-O {[%emt 0:01:04]} 9. O-O {[%emt 0:00:10]} Bxg3 {[%emt 0:01:36]} 10. hxg3 {[%emt 0:00:02]} Rb8 {[%emt 0:00:16]} 11. a4 {[%emt 0:01:15]} a6 {[%emt 0:00:31]} 12. Qe2 {[%emt 0:01:18]} Bd7 {[%emt 0:02:31]} 13. Re1 {[%emt 0:00:36]} Ne7 {[%emt 0:00:18]} 14. Nbd2 {[%emt 0:00:08]} b5 {[%emt 0:00:08]} 15. axb5 {[%emt 0:00:03]} axb5 {[%emt 0:00:19]} 16. Ra7 {[%emt 0:01:38]} Nc6 {[%emt 0:02:21]} 17. Raa1 {[%emt 0:00:36]} b4 {[%emt 0:00:01]} 18. c4 {[%emt 0:00:20]} dxc4 {[%emt 0:01:35]} 19. Nxc4 {[%emt 0:00:49]} Ne7 {[%emt 0:00:24]} 20. Rec1 {[%emt 0:00:29]} Ned5 {[%emt 0:00:29]} 21. Ne3 {[%emt 0:00:45]} Nxe3 {[%emt 0:00:17]} 22. Qxe3 {[%emt 0:00:07]} Nd5 {[%emt 0:00:52]} 23. Qe4 {[%emt 0:00:36]} f5 {[%emt 0:00:06]} 24. Qe2 {[%emt 0:01:00]} Qb6 {[%emt 0:00:56]} 25. Ne5 {[%emt 0:00:53]} Bb5 {[%emt 0:00:31]} 26. Bxb5 {[%emt 0:01:48]} Qxb5 {[%emt 0:00:02]} 27. Qxb5 {[%emt 0:00:17]} Rxb5 {[%emt 0:00:02]} 28. Rc6 {[%emt 0:00:23]} Rb6 {[%emt 0:00:39]} 29. Rxb6 {[%emt 0:00:06]} Nxb6 {[%emt 0:00:01]} 30. Ra6 {[%emt 0:00:01]} Rb8 {[%emt 0:01:12]} 31. Kf1 {[%emt 0:00:38]} Kf8 {[%emt 0:00:48]} 32. Rxb6 {[%emt 0:00:09]} 1-0

[Event "Asian Amateur Rapid Women 2024"]
[Site "Al Ain"]
[Date "2024.12.15"]
[Round "2.14"]
[White "Mikheeva, Vasilisa"]
[Black "Almaamari, Zainab Darwish"]
[Result "0-1"]
[ECO "D37"]
[WhiteElo "1436"]
[BlackElo "1751"]
[Annotator "NA RC"]
[PlyCount "56"]
[EventDate "2024.12.15"]
[EventType "swiss"]
[EventCountry "UAE"]
[SourceTitle "playchess.com"]
[Source "ChessBase"]
[SourceQuality "1"]
[TimeControl "900+10"]

1. d4 {[%emt 0:00:01]} Nf6 {[%emt 0:00:06]} 2. Nf3 {[%emt 0:00:05]} e6 {[%emt 0:00:08]} 3. Bf4 {[%emt 0:00:05]} d5 {[%emt 0:00:05]} 4. e3 {[%emt 0:00:03]} c5 {[%emt 0:00:04]} 5. c4 {[%emt 0:00:16]} Nc6 {[%emt 0:00:11]} 6. Nc3 {[%emt 0:00:10]} a6 {[%emt 0:00:11]} 7. Be2 {[%emt 0:00:29]} Be7 {[%emt 0:00:08]} 8. O-O {[%emt 0:00:11]} O-O {[%emt 0:00:03]} 9. Rc1 {[%emt 0:01:30]} dxc4 {[%emt 0:00:08]} 10. Bxc4 {[%emt 0:00:11]} b5 {[%emt 0:00:02]} 11. Be2 {[%emt 0:00:14]} cxd4 {[%emt 0:00:22]} 12. exd4 {[%emt 0:00:14]} Bb7 {[%emt 0:00:04]} 13. Be3 {[%emt 0:00:43]} Rc8 {[%emt 0:00:20]} 14. Qc2 {[%emt 0:00:21]} b4 {[%emt 0:00:08]} 15. Na4 {[%emt 0:00:40]} Nxd4 {[%emt 0:00:05]} 16. Qd2 {[%emt 0:00:41]} Nxf3+ {[%emt 0:00:23]} 17. Bxf3 {[%emt 0:00:05]} Qxd2 {[%emt 0:00:06]} 18. Bxd2 {[%emt 0:00:03]} Bxf3 {[%emt 0:00:02]} 19. gxf3 {[%emt 0:00:04]} Nd5 {[%emt 0:00:38]} 20. Rfd1 {[%emt 0:01:07]} Bd6 {[%emt 0:00:30]} 21. Be3 {[%emt 0:00:44]} Bf4 {[%emt 0:00:55]} 22. Bxf4 {[%emt 0:00:13]} Nxf4 {[%emt 0:00:02]} 23. Rxc8 {[%emt 0:00:26]} Re8 24. Rcd8 Rxd8 {[%emt 0:00:11]} 25. Kf1 {[%emt 0:00:49]} Rc8 {[%emt 0:00:02]} 26. Rd6 {[%emt 0:00:37]} h6 {[%emt 0:00:16]} 27. Rd4 {[%emt 0:09:38]} Rc1+ 28. Rd1 {[%emt 0:00:00]} Rxd1# {[%emt 0:00:13]} 0-1

[Event "Asian Amateur Rapid Women 2024"]
[Site "Al Ain"]
[Date "2024.12.15"]
[Round "2.16"]
[White "Lulwa Khalifa Alhammadi"]
[Black "Rani Puja"]
[Result "1-0"]
[ECO "C54"]
[WhiteElo "1621"]
[BlackElo "1478"]
[Annotator "NA RC"]
[PlyCount "91"]
[EventDate "2024.12.15"]
[EventType "swiss"]
[EventCountry "UAE"]
[SourceTitle "playchess.com"]
[Source "ChessBase"]
[SourceQuality "1"]
[TimeControl "900+10"]

1. e4 {[%emt 0:00:02]} e5 {[%emt 0:00:02]} 2. Nf3 {[%emt 0:00:03]} Nc6 {[%emt 0:00:02]} 3. Bc4 {[%emt 0:00:07]} Bc5 {[%emt 0:00:03]} 4. c3 {[%emt 0:00:02]} Nf6 {[%emt 0:00:03]} 5. d3 {[%emt 0:00:04]} d6 {[%emt 0:00:17]} 6. b4 {[%emt 0:00:04]} Bb6 {[%emt 0:00:03]} 7. a4 {[%emt 0:00:04]} a6 {[%emt 0:00:22]} 8. Nbd2 {[%emt 0:00:04]} Be6 {[%emt 0:00:46]} 9. Bb3 {[%emt 0:01:28]} O-O {[%emt 0:00:20]} 10. Bc2 {[%emt 0:00:29]} d5 {[%emt 0:01:02]} 11. O-O {[%emt 0:00:14]} dxe4 {[%emt 0:14:00]} 12. Nxe4 {[%emt 0:00:49]} Nxe4 {[%emt 0:00:00]} 13. dxe4 {[%emt 0:00:03]} Qf6 {[%emt 0:00:00]} 14. Qd2 {[%emt 0:02:42]} h6 {[%emt 0:00:00]} 15. a5 {[%emt 0:00:40]} Ba7 {[%emt 0:00:00]} 16. Qe2 {[%emt 0:01:27]} Ne7 {[%emt 0:00:00]} 17. Be3 {[%emt 0:01:54]} Ng6 {[%emt 0:00:00]} 18. Nd2 {[%emt 0:02:02]} Rfd8 {[%emt 0:00:00]} 19. Rad1 {[%emt 0:01:20]} Nf4 {[%emt 0:00:00]} 20. Qf3 {[%emt 0:00:40]} Rd6 {[%emt 0:00:00]} 21. Bxf4 {[%emt 0:02:07]} exf4 {[%emt 0:00:00]} 22. e5 {[%emt 0:00:28]} Qxe5 {[%emt 0:00:00]} 23. Qxb7 {[%emt 0:00:12]} Bd5 {[%emt 0:00:14]} 24. Qxc7 {[%emt 0:00:12]} Bxg2 {[%emt 0:00:13]} 25. Nc4 {[%emt 0:00:44]} Qg5 {[%emt 0:00:26]} 26. h4 {[%emt 0:00:56]} Qg4 {[%emt 0:00:15]} 27. Bf5 {[%emt 0:00:11]} Qxf5 {[%emt 0:00:29]} 28. Nxd6 {[%emt 0:00:02]} Qg4 {[%emt 0:00:19]} 29. Qxf7+ {[%emt 0:00:04]} Kh8 {[%emt 0:00:13]} 30. Qf5 {[%emt 0:00:07]} Qxf5 {[%emt 0:01:01]} 31. Nxf5 {[%emt 0:00:02]} Bxf1 {[%emt 0:00:00]} 32. Kxf1 {[%emt 0:00:03]} Rc8 {[%emt 0:00:00]} 33. Rd7 {[%emt 0:00:03]} Bb8 {[%emt 0:00:00]} 34. Rxg7 {[%emt 0:00:15]} Rxc3 {[%emt 0:00:00]} 35. Rb7 {[%emt 0:00:05]} f3 {[%emt 0:00:20]} 36. Rxb8+ {[%emt 0:00:02]} Kh7 {[%emt 0:00:00]} 37. Kg1 {[%emt 0:00:04]} Kg6 {[%emt 0:00:03]} 38. Ne3 {[%emt 0:00:05]} Rc1+ {[%emt 0:00:07]} 39. Kh2 {[%emt 0:00:01]} Rb1 {[%emt 0:00:05]} 40. Kg3 {[%emt 0:00:01]} Rb3 {[%emt 0:00:11]} 41. Kxf3 {[%emt 0:00:08]} Kh5 {[%emt 0:00:04]} 42. Rb6 {[%emt 0:00:04]} Rb2 {[%emt 0:00:06]} 43. Kg3 {[%emt 0:00:08]} Rb1 {[%emt 0:00:05]} 44. Rxa6 {[%emt 0:00:05]} Rxb4 {[%emt 0:00:02]} 45. Rb6 {[%emt 0:00:05]} Rxh4 {[%emt 0:00:04]} 46. Rxh6+ {[%emt 0:00:03]} 1-0

[Event "Asian Amateur Rapid Women 2024"]
[Site "Al Ain"]
[Date "2024.12.15"]
[Round "3.2"]
[White "Ahoud Eisa Mohamed"]
[Black "Antonova, Nadezhda"]
[Result "0-1"]
[ECO "B15"]
[WhiteElo "1553"]
[BlackElo "1989"]
[Annotator "RC"]
[PlyCount "60"]
[EventDate "2024.12.15"]
[EventType "swiss"]
[EventCountry "UAE"]
[SourceTitle "playchess.com"]
[Source "ChessBase"]
[SourceQuality "1"]
[TimeControl "900+10"]

1. e4 {[%emt 0:00:02]} c6 {[%emt 0:00:01]} 2. d4 {[%emt 0:00:02]} d5 {[%emt 0:00:01]} 3. Nc3 {[%emt 0:00:03]} dxe4 {[%emt 0:00:01]} 4. Nxe4 {[%emt 0:00:01]} Nf6 {[%emt 0:00:02]} 5. Nxf6+ {[%emt 0:00:04]} exf6 {[%emt 0:00:01]} 6. c3 {[%emt 0:00:01]} Bd6 {[%emt 0:00:01]} 7. Bd3 {[%emt 0:00:01]} O-O {[%emt 0:00:04]} 8. Qc2 {[%emt 0:00:01]} Re8+ {[%emt 0:00:03]} 9. Ne2 {[%emt 0:00:02]} h5 {[%emt 0:00:01]} 10. O-O {[%emt 0:00:02]} h4 {[%emt 0:00:12]} 11. h3 {[%emt 0:00:02]} Nd7 {[%emt 0:00:15]} 12. Bf4 {[%emt 0:01:59]} Nf8 {[%emt 0:00:15]} 13. Bxd6 {[%emt 0:00:25]} Qxd6 {[%emt 0:00:02]} 14. Rfe1 {[%emt 0:00:11]} Be6 {[%emt 0:00:34]} 15. Qd2 {[%emt 0:00:28]} g5 {[%emt 0:00:53]} 16. b3 {[%emt 0:00:33]} Rad8 {[%emt 0:00:25]} 17. Rad1 {[%emt 0:00:04]} Kg7 {[%emt 0:00:49]} 18. Qc2 {[%emt 0:01:30]} Ng6 {[%emt 0:01:15]} 19. c4 {[%emt 0:01:28]} Qd7 {[%emt 0:04:49]} 20. d5 {[%emt 0:02:42]} cxd5 {[%emt 0:00:15]} 21. cxd5 {[%emt 0:00:03]} Bxd5 {[%emt 0:00:24]} 22. Bc4 {[%emt 0:02:31]} Qc8 {[%emt 0:03:37]} 23. Nd4 {[%emt 0:05:17]} Rxe1+ {[%emt 0:05:00]} 24. Rxe1 {[%emt 0:00:02]} Bxc4 {[%emt 0:00:00]} 25. Nf5+ {[%emt 0:00:04]} Kf8 {[%emt 0:00:00]} 26. bxc4 {[%emt 0:00:03]} b5 {[%emt 0:00:00]} 27. Ne3 {[%emt 0:00:37]} bxc4 {[%emt 0:00:00]} 28. Nxc4 {[%emt 0:00:21]} Ne5 {[%emt 0:00:02]} 29. Rc1 {[%emt 0:00:22]} Nxc4 {[%emt 0:00:11]} 30. Qxc4 {[%emt 0:00:02]} Rd1+ {[%emt 0:00:23]} 0-1